[Event "Early-Titled-Tuesday-Blitz-January-23-2024"]
[Site "Chess.com"]
[Date "2024.01.23"]
[Round "10"]
[White "Klavdia_Nik"]
[Black "Rgoltsman"]
[Result "0-1"]
[WhiteElo "2145"]
[BlackElo "2263"]
[TimeControl "180+1"]
[EndTime "9:56:05 PST"]
[Termination "Rgoltsman won on time"]

1. Nf3 {[%clk 0:02:49.7]} 1... g6 {[%clk 0:03:00.4]} 2. c4 {[%clk 0:02:47.7]}
2... Bg7 {[%clk 0:03:01]} 3. Nc3 {[%clk 0:02:46.7]} 3... Nf6 {[%clk 0:03:01.6]}
4. e4 {[%clk 0:02:46.3]} 4... O-O {[%clk 0:03:02.2]} 5. Be2 {[%clk 0:02:45.9]}
5... c6 {[%clk 0:03:02.4]} 6. e5 {[%clk 0:02:41.1]} 6... Ne8 {[%clk 0:03:02.2]}
7. d4 {[%clk 0:02:38.9]} 7... d6 {[%clk 0:03:02.4]} 8. Bf4 {[%clk 0:02:32]} 8...
c5 {[%clk 0:03:01.9]} 9. exd6 {[%clk 0:02:28.4]} 9... exd6 {[%clk 0:02:57.8]}
10. dxc5 {[%clk 0:01:59.3]} 10... Qa5 {[%clk 0:02:56.1]} 11. O-O {[%clk
0:01:53.1]} 11... dxc5 {[%clk 0:02:44.8]} 12. Be5 {[%clk 0:01:42.5]} 12... Nc6
{[%clk 0:02:37.5]} 13. Bxg7 {[%clk 0:01:41.8]} 13... Nxg7 {[%clk 0:02:34.9]} 14.
Nd5 {[%clk 0:01:39.9]} 14... Be6 {[%clk 0:02:28.9]} 15. b3 {[%clk 0:01:15.4]}
15... Rfd8 {[%clk 0:02:18.1]} 16. Ng5 {[%clk 0:01:12.1]} 16... Bxd5 {[%clk
0:02:05.4]} 17. cxd5 {[%clk 0:01:11.3]} 17... Nd4 {[%clk 0:01:55.3]} 18. Bf3
{[%clk 0:01:06.7]} 18... Ngf5 {[%clk 0:01:47.2]} 19. g3 {[%clk 0:01:00.1]} 19...
h6 {[%clk 0:01:26.8]} 20. Ne4 {[%clk 0:00:49.1]} 20... Kg7 {[%clk 0:01:18.6]}
21. Bg2 {[%clk 0:00:48.2]} 21... Rxd5 {[%clk 0:01:11]} 22. Re1 {[%clk
0:00:36.1]} 22... Re5 {[%clk 0:00:59.4]} 23. Qc1 {[%clk 0:00:31.9]} 23... Rae8
{[%clk 0:00:56.2]} 24. f3 {[%clk 0:00:30.5]} 24... Nd6 {[%clk 0:00:46.5]} 25.
Qb2 {[%clk 0:00:23]} 25... Nxe4 {[%clk 0:00:45.2]} 26. fxe4 {[%clk 0:00:22.5]}
26... b6 {[%clk 0:00:41.5]} 27. a3 {[%clk 0:00:19.8]} 27... Qb5 {[%clk
0:00:41.7]} 28. b4 {[%clk 0:00:18.2]} 28... Rd8 {[%clk 0:00:24.7]} 29. Rad1
{[%clk 0:00:15.9]} 29... a5 {[%clk 0:00:20.7]} 30. Bf1 {[%clk 0:00:05.1]} 30...
Qc6 {[%clk 0:00:19.7]} 0-1

[Event "Early-Titled-Tuesday-Blitz-January-23-2024"]
[Site "Chess.com"]
[Date "2024.01.23"]
[Round "10"]
[White "LiadCuba"]
[Black "DDTerziev04"]
[Result "0-1"]
[WhiteElo "2435"]
[BlackElo "2246"]
[TimeControl "180+1"]
[EndTime "9:56:06 PST"]
[Termination "DDTerziev04 won on time"]

1. d4 {[%clk 0:03:00.9]} 1... d5 {[%clk 0:02:59.4]} 2. c4 {[%clk 0:03:00.9]}
2... dxc4 {[%clk 0:03:00.3]} 3. Nf3 {[%clk 0:03:00.1]} 3... Nf6 {[%clk
0:03:00.7]} 4. e3 {[%clk 0:02:58]} 4... e6 {[%clk 0:02:55.4]} 5. Bxc4 {[%clk
0:02:58.2]} 5... a6 {[%clk 0:02:55.9]} 6. a4 {[%clk 0:02:55.6]} 6... Be7 {[%clk
0:02:49.8]} 7. O-O {[%clk 0:02:55.9]} 7... O-O {[%clk 0:02:49.2]} 8. b3 {[%clk
0:02:52.8]} 8... Nbd7 {[%clk 0:02:48]} 9. Qe2 {[%clk 0:02:48.6]} 9... c5 {[%clk
0:02:47.8]} 10. Rd1 {[%clk 0:02:42.3]} 10... b6 {[%clk 0:02:43.6]} 11. dxc5
{[%clk 0:02:24.4]} 11... Bxc5 {[%clk 0:02:43.1]} 12. Ne5 {[%clk 0:02:22]} 12...
Qc7 {[%clk 0:02:39]} 13. Nd3 {[%clk 0:02:19.5]} 13... Bb7 {[%clk 0:02:36.9]} 14.
Bb2 {[%clk 0:02:08.9]} 14... Bd6 {[%clk 0:02:33.4]} 15. f4 {[%clk 0:01:39]}
15... Ne4 {[%clk 0:02:23.6]} 16. Nd2 {[%clk 0:01:32.1]} 16... Ndf6 {[%clk
0:02:08.3]} 17. Rac1 {[%clk 0:01:26.4]} 17... Qe7 {[%clk 0:01:58.9]} 18. Nf2
{[%clk 0:01:11.4]} 18... Bc5 {[%clk 0:01:48.4]} 19. Ndxe4 {[%clk 0:00:41]} 19...
Nxe4 {[%clk 0:01:46.3]} 20. Ng4 {[%clk 0:00:41.2]} 20... f5 {[%clk 0:01:22.7]}
21. Ne5 {[%clk 0:00:41]} 21... Rad8 {[%clk 0:01:04.6]} 22. Bd4 {[%clk
0:00:21.2]} 22... a5 {[%clk 0:00:48.2]} 23. Bxc5 {[%clk 0:00:17.6]} 23... Nxc5
{[%clk 0:00:49.1]} 24. Rd4 {[%clk 0:00:15.9]} 24... Bd5 {[%clk 0:00:41.7]} 25.
Bxd5 {[%clk 0:00:14.8]} 25... exd5 {[%clk 0:00:39.7]} 26. Nc6 {[%clk 0:00:14.4]}
26... Qe6 {[%clk 0:00:33.1]} 27. Nxd8 {[%clk 0:00:14.3]} 27... Rxd8 {[%clk
0:00:33.9]} 28. Rc3 {[%clk 0:00:10.6]} 28... Qd6 {[%clk 0:00:18.5]} 29. Qd1
{[%clk 0:00:07.1]} 29... Qe6 {[%clk 0:00:18.3]} 30. Qf3 {[%clk 0:00:06.2]} 30...
Ne4 {[%clk 0:00:17.9]} 31. Rc7 {[%clk 0:00:04.7]} 31... Qd6 {[%clk 0:00:17.9]}
32. Ra7 {[%clk 0:00:03.4]} 32... Qc6 {[%clk 0:00:17.6]} 0-1

[Event "Early-Titled-Tuesday-Blitz-January-23-2024"]
[Site "Chess.com"]
[Date "2024.01.23"]
[Round "10"]
[White "KorolDimitriy75"]
[Black "Ezov"]
[Result "1-0"]
[WhiteElo "2365"]
[BlackElo "2218"]
[TimeControl "180+1"]
[EndTime "9:56:09 PST"]
[Termination "KorolDimitriy75 won on time"]

1. d4 {[%clk 0:03:00.9]} 1... d5 {[%clk 0:02:58.5]} 2. c4 {[%clk 0:03:01.4]}
2... c6 {[%clk 0:02:57.8]} 3. Nc3 {[%clk 0:03:02]} 3... Nf6 {[%clk 0:02:56.6]}
4. e3 {[%clk 0:03:02.6]} 4... e6 {[%clk 0:02:55.7]} 5. Nf3 {[%clk 0:03:03.1]}
5... Be7 {[%clk 0:02:55.3]} 6. Bd3 {[%clk 0:03:03.8]} 6... dxc4 {[%clk
0:02:54.7]} 7. Bxc4 {[%clk 0:03:04.7]} 7... b5 {[%clk 0:02:54.2]} 8. Bd3 {[%clk
0:02:58.9]} 8... b4 {[%clk 0:02:53.4]} 9. Ne4 {[%clk 0:02:54.1]} 9... a5 {[%clk
0:02:51.9]} 10. Qc2 {[%clk 0:02:47.2]} 10... Qb6 {[%clk 0:02:14.7]} 11. O-O
{[%clk 0:02:30.6]} 11... Ba6 {[%clk 0:02:12.1]} 12. Nxf6+ {[%clk 0:02:11.9]}
12... Bxf6 {[%clk 0:02:06.1]} 13. e4 {[%clk 0:02:07]} 13... Nd7 {[%clk
0:01:39.8]} 14. Be3 {[%clk 0:01:58.9]} 14... Bxd3 {[%clk 0:01:30.5]} 15. Qxd3
{[%clk 0:01:59.8]} 15... Qb5 {[%clk 0:01:29.8]} 16. Qc2 {[%clk 0:01:56.5]} 16...
O-O {[%clk 0:01:21.9]} 17. Rac1 {[%clk 0:01:49.9]} 17... Rac8 {[%clk 0:01:18.8]}
18. Rfd1 {[%clk 0:01:47.5]} 18... e5 {[%clk 0:01:11.8]} 19. d5 {[%clk
0:01:19.9]} 19... c5 {[%clk 0:00:55.7]} 20. Nd2 {[%clk 0:01:12.2]} 20... Nb6
{[%clk 0:00:35]} 21. Nc4 {[%clk 0:01:01.9]} 21... Nxc4 {[%clk 0:00:33.2]} 22.
Qxc4 {[%clk 0:01:02.8]} 22... Qa4 {[%clk 0:00:19.9]} 23. Bxc5 {[%clk 0:00:41.2]}
23... Be7 {[%clk 0:00:16.2]} 24. d6 {[%clk 0:00:39.8]} 24... Rfd8 {[%clk
0:00:09.7]} 25. b3 {[%clk 0:00:21]} 25... Qxa2 {[%clk 0:00:01.8]} 26. dxe7
{[%clk 0:00:15.8]} 26... Re8 {[%clk 0:00:01.5]} 27. h3 {[%clk 0:00:14]} 1-0

[Event "Early-Titled-Tuesday-Blitz-January-23-2024"]
[Site "Chess.com"]
[Date "2024.01.23"]
[Round "10"]
[White "Hikaru"]
[Black "DenLaz"]
[Result "1-0"]
[WhiteElo "3310"]
[BlackElo "3094"]
[TimeControl "180+1"]
[EndTime "9:56:15 PST"]
[Termination "Hikaru won by resignation"]

1. d4 {[%clk 0:03:00.9]} 1... Nf6 {[%clk 0:02:59.6]} 2. Nf3 {[%clk 0:02:52.9]}
2... d5 {[%clk 0:03:00]} 3. c4 {[%clk 0:02:52.3]} 3... e6 {[%clk 0:03:00]} 4.
Nc3 {[%clk 0:02:52.2]} 4... Be7 {[%clk 0:03:00.5]} 5. Bf4 {[%clk 0:02:50.5]}
5... O-O {[%clk 0:03:00.9]} 6. e3 {[%clk 0:02:51]} 6... Nbd7 {[%clk 0:03:01.5]}
7. c5 {[%clk 0:02:50.7]} 7... c6 {[%clk 0:03:01.9]} 8. Bd3 {[%clk 0:02:50]} 8...
b6 {[%clk 0:03:02.2]} 9. b4 {[%clk 0:02:50.2]} 9... a5 {[%clk 0:03:03]} 10. a3
{[%clk 0:02:50.6]} 10... Ba6 {[%clk 0:03:03.6]} 11. Bxa6 {[%clk 0:02:48.5]}
11... Rxa6 {[%clk 0:03:04.5]} 12. O-O {[%clk 0:02:48.3]} 12... Qa8 {[%clk
0:03:04.4]} 13. Rb1 {[%clk 0:02:42.5]} 13... Qb7 {[%clk 0:02:52.2]} 14. Ne1
{[%clk 0:02:30.4]} 14... axb4 {[%clk 0:02:42.6]} 15. axb4 {[%clk 0:02:30.4]}
15... Rfa8 {[%clk 0:02:43.2]} 16. Qc2 {[%clk 0:02:27]} 16... b5 {[%clk
0:02:42.3]} 17. h3 {[%clk 0:02:24.8]} 17... h6 {[%clk 0:02:42.6]} 18. Nd3 {[%clk
0:02:24.8]} 18... Bd8 {[%clk 0:02:42.1]} 19. f3 {[%clk 0:02:14.2]} 19... Bc7
{[%clk 0:02:41.9]} 20. Rfe1 {[%clk 0:02:09.1]} 20... Ra3 {[%clk 0:02:41.1]} 21.
Qd2 {[%clk 0:02:08.7]} 21... Qb8 {[%clk 0:02:36]} 22. Ne2 {[%clk 0:01:55.8]}
22... e5 {[%clk 0:02:18.4]} 23. dxe5 {[%clk 0:01:51.9]} 23... Nxe5 {[%clk
0:02:18.8]} 24. Bxe5 {[%clk 0:01:49]} 24... Bxe5 {[%clk 0:02:18.7]} 25. Nxe5
{[%clk 0:01:49.5]} 25... Qxe5 {[%clk 0:02:18.6]} 26. Nd4 {[%clk 0:01:50.2]}
26... R8a6 {[%clk 0:02:16.3]} 27. Qf2 {[%clk 0:01:40.3]} 27... g6 {[%clk
0:01:57.3]} 28. Re2 {[%clk 0:01:37.5]} 28... Kg7 {[%clk 0:01:56.6]} 29. g4
{[%clk 0:01:36.8]} 29... Nd7 {[%clk 0:01:50.3]} 30. Rbe1 {[%clk 0:01:19]} 30...
Qf6 {[%clk 0:01:40.9]} 31. f4 {[%clk 0:01:16.5]} 31... R3a4 {[%clk 0:01:24.4]}
32. e4 {[%clk 0:01:11.8]} 32... dxe4 {[%clk 0:01:21.8]} 33. Rxe4 {[%clk
0:01:11.6]} 33... Ra2 {[%clk 0:01:22.3]} 34. R1e2 {[%clk 0:01:07.3]} 34... Rxe2
{[%clk 0:01:13]} 35. Qxe2 {[%clk 0:01:08.2]} 35... Ra4 {[%clk 0:01:13]} 36. Kg2
{[%clk 0:01:07.6]} 36... Nf8 {[%clk 0:00:53.1]} 37. Qd2 {[%clk 0:01:07.1]} 37...
Ra8 {[%clk 0:00:39.5]} 38. f5 {[%clk 0:00:58]} 38... Rd8 {[%clk 0:00:32.6]} 39.
Qe3 {[%clk 0:00:50.4]} 39... g5 {[%clk 0:00:29.4]} 40. Nf3 {[%clk 0:00:46.8]}
40... Nh7 {[%clk 0:00:26.1]} 41. Rd4 {[%clk 0:00:43.2]} 41... Rxd4 {[%clk
0:00:06.5]} 42. Qxd4 {[%clk 0:00:41.2]} 42... Kf8 {[%clk 0:00:05.5]} 43. Ne5
{[%clk 0:00:38.9]} 43... Kg7 {[%clk 0:00:03.1]} 44. Nxc6 {[%clk 0:00:36.9]} 1-0

[Event "Early-Titled-Tuesday-Blitz-January-23-2024"]
[Site "Chess.com"]
[Date "2024.01.23"]
[Round "10"]
[White "Kostya0705"]
[Black "Kotofeyca"]
[Result "1-0"]
[WhiteElo "2566"]
[BlackElo "2361"]
[TimeControl "180+1"]
[EndTime "9:56:15 PST"]
[Termination "Kostya0705 won on time"]

1. e4 {[%clk 0:02:57.5]} 1... c5 {[%clk 0:02:59.7]} 2. Nf3 {[%clk 0:02:57.2]}
2... d6 {[%clk 0:03:00.2]} 3. d4 {[%clk 0:02:47.8]} 3... cxd4 {[%clk 0:03:01.1]}
4. Nxd4 {[%clk 0:02:43.3]} 4... Nf6 {[%clk 0:03:01.2]} 5. Nc3 {[%clk 0:02:42.8]}
5... a6 {[%clk 0:03:01.8]} 6. h4 {[%clk 0:02:34.5]} 6... b5 {[%clk 0:02:56.3]}
7. a4 {[%clk 0:02:33.4]} 7... b4 {[%clk 0:02:54.2]} 8. Nd5 {[%clk 0:02:33.5]}
8... Nxe4 {[%clk 0:02:50.8]} 9. Qf3 {[%clk 0:02:24.1]} 9... Nc5 {[%clk
0:02:23.5]} 10. Nf6+ {[%clk 0:02:18.2]} 10... gxf6 {[%clk 0:01:45.9]} 11. Qxa8
{[%clk 0:02:07.5]} 11... Bb7 {[%clk 0:01:45.2]} 12. Qa7 {[%clk 0:02:07.1]} 12...
e5 {[%clk 0:01:41.7]} 13. Bxa6 {[%clk 0:00:43.9]} 13... Bxa6 {[%clk 0:01:12.5]}
14. Nb5 {[%clk 0:00:41.4]} 14... Bb7 {[%clk 0:01:08.6]} 15. a5 {[%clk
0:00:34.1]} 15... Nc6 {[%clk 0:00:43.9]} 16. Qb6 {[%clk 0:00:29.4]} 16... Qxb6
{[%clk 0:00:34.4]} 17. axb6 {[%clk 0:00:30.3]} 17... Kd7 {[%clk 0:00:21.1]} 18.
Be3 {[%clk 0:00:28.7]} 18... Be7 {[%clk 0:00:12.7]} 19. Ke2 {[%clk 0:00:25.2]}
19... Rb8 {[%clk 0:00:10]} 20. c3 {[%clk 0:00:19.6]} 20... bxc3 {[%clk
0:00:09.1]} 21. bxc3 {[%clk 0:00:19.7]} 21... Bc8 {[%clk 0:00:07.7]} 22. Bxc5
{[%clk 0:00:14.1]} 22... dxc5 {[%clk 0:00:07]} 23. Rhd1+ {[%clk 0:00:13.6]}
23... Ke6 {[%clk 0:00:05.3]} 24. Nc7+ {[%clk 0:00:13.5]} 24... Kf5 {[%clk
0:00:05.4]} 25. Nd5 {[%clk 0:00:14.4]} 25... Bf8 {[%clk 0:00:03.4]} 26. f3
{[%clk 0:00:12.5]} 26... Be6 {[%clk 0:00:02]} 27. Ne3+ {[%clk 0:00:11.6]} 27...
Kg6 {[%clk 0:00:02.2]} 28. Rdb1 {[%clk 0:00:09.4]} 28... c4 {[%clk 0:00:02.5]}
29. Ra6 {[%clk 0:00:07.9]} 1-0

[Event "Early-Titled-Tuesday-Blitz-January-23-2024"]
[Site "Chess.com"]
[Date "2024.01.23"]
[Round "10"]
[White "Kapitan_Bayan"]
[Black "Orphanator2009"]
[Result "1-0"]
[WhiteElo "2361"]
[BlackElo "2459"]
[TimeControl "180+1"]
[EndTime "9:56:18 PST"]
[Termination "Kapitan_Bayan won by checkmate"]

1. e4 {[%clk 0:03:00.9]} 1... c5 {[%clk 0:02:58.1]} 2. Nf3 {[%clk 0:02:58.3]}
2... d6 {[%clk 0:02:56.5]} 3. d4 {[%clk 0:02:58]} 3... cxd4 {[%clk 0:02:57.4]}
4. Nxd4 {[%clk 0:02:58.9]} 4... Nf6 {[%clk 0:02:58.1]} 5. Nc3 {[%clk 0:02:57.9]}
5... Nc6 {[%clk 0:02:58.6]} 6. Bg5 {[%clk 0:02:54.9]} 6... e6 {[%clk 0:02:58.8]}
7. Qd2 {[%clk 0:02:48]} 7... a6 {[%clk 0:02:58.6]} 8. O-O-O {[%clk 0:02:47.5]}
8... Bd7 {[%clk 0:02:58.6]} 9. f4 {[%clk 0:02:44.6]} 9... Be7 {[%clk 0:02:58.1]}
10. Be2 {[%clk 0:02:34.4]} 10... h6 {[%clk 0:02:27.6]} 11. Bxf6 {[%clk
0:02:06.5]} 11... Bxf6 {[%clk 0:02:27]} 12. Nb3 {[%clk 0:01:47.2]} 12... Be7
{[%clk 0:02:16]} 13. Bf3 {[%clk 0:01:43.3]} 13... b5 {[%clk 0:02:13.2]} 14. Nd4
{[%clk 0:01:30]} 14... Qb6 {[%clk 0:02:06]} 15. Nce2 {[%clk 0:01:27.7]} 15...
Nxd4 {[%clk 0:02:02.4]} 16. Nxd4 {[%clk 0:01:28.6]} 16... Rc8 {[%clk 0:02:02.6]}
17. Kb1 {[%clk 0:01:26]} 17... O-O {[%clk 0:01:54.9]} 18. f5 {[%clk 0:01:23.6]}
18... Bf6 {[%clk 0:01:51.3]} 19. fxe6 {[%clk 0:01:18.7]} 19... fxe6 {[%clk
0:01:50.7]} 20. Bg4 {[%clk 0:01:18.3]} 20... Rce8 {[%clk 0:01:00.7]} 21. Rhf1
{[%clk 0:01:07.9]} 21... Re7 {[%clk 0:00:55.7]} 22. Nf3 {[%clk 0:00:39.4]} 22...
Qb7 {[%clk 0:00:28.1]} 23. Qxd6 {[%clk 0:00:23.5]} 23... Qxe4 {[%clk 0:00:27.9]}
24. Bh3 {[%clk 0:00:21.2]} 24... Bc8 {[%clk 0:00:22.2]} 25. Rfe1 {[%clk
0:00:20.7]} 25... Qc4 {[%clk 0:00:18.4]} 26. Ne5 {[%clk 0:00:18.3]} 26... Bxe5
{[%clk 0:00:17.8]} 27. Qxe7 {[%clk 0:00:16.3]} 27... Bf6 {[%clk 0:00:17.5]} 28.
Bxe6+ {[%clk 0:00:15.6]} 28... Kh7 {[%clk 0:00:14]} 29. Bxc4 {[%clk 0:00:15.6]}
29... Bxe7 {[%clk 0:00:14.2]} 30. Rxe7 {[%clk 0:00:15.1]} 30... bxc4 {[%clk
0:00:15.1]} 31. Rc7 {[%clk 0:00:13.9]} 31... Bg4 {[%clk 0:00:14.8]} 32. Re1
{[%clk 0:00:13.6]} 32... Rf2 {[%clk 0:00:14.3]} 33. a3 {[%clk 0:00:12.9]} 33...
Bf5 {[%clk 0:00:14.7]} 34. Ree7 {[%clk 0:00:13.2]} 34... Rxc2 {[%clk 0:00:13.5]}
35. Rxg7+ {[%clk 0:00:12.6]} 35... Kh8 {[%clk 0:00:14.2]} 36. Rgf7 {[%clk
0:00:11.2]} 36... Bg6 {[%clk 0:00:12.8]} 37. Rf8# {[%clk 0:00:10.2]} 1-0

[Event "Early-Titled-Tuesday-Blitz-January-23-2024"]
[Site "Chess.com"]
[Date "2024.01.23"]
[Round "10"]
[White "Sina_Movahed"]
[Black "jefferyx"]
[Result "1-0"]
[WhiteElo "2993"]
[BlackElo "3007"]
[TimeControl "180+1"]
[EndTime "9:56:19 PST"]
[Termination "Sina_Movahed won by checkmate"]

1. e4 {[%clk 0:02:56.8]} 1... e6 {[%clk 0:03:00.5]} 2. d4 {[%clk 0:02:56.4]}
2... d5 {[%clk 0:03:01.1]} 3. e5 {[%clk 0:02:57.1]} 3... c5 {[%clk 0:03:01]} 4.
c3 {[%clk 0:02:57.8]} 4... Nc6 {[%clk 0:03:00.9]} 5. Nf3 {[%clk 0:02:58.5]} 5...
cxd4 {[%clk 0:03:01.6]} 6. cxd4 {[%clk 0:02:58.5]} 6... Nge7 {[%clk 0:03:02.5]}
7. Nc3 {[%clk 0:02:58.7]} 7... Nf5 {[%clk 0:03:02.7]} 8. Be2 {[%clk 0:02:53.8]}
8... Qb6 {[%clk 0:02:59.3]} 9. Na4 {[%clk 0:02:53.4]} 9... Bb4+ {[%clk
0:02:58.9]} 10. Kf1 {[%clk 0:02:51.4]} 10... Qd8 {[%clk 0:02:58.8]} 11. g4
{[%clk 0:02:49.2]} 11... Nh4 {[%clk 0:02:55.2]} 12. Be3 {[%clk 0:02:40.3]} 12...
Nxf3 {[%clk 0:02:54]} 13. Bxf3 {[%clk 0:02:40.3]} 13... Bd7 {[%clk 0:02:54.2]}
14. Rc1 {[%clk 0:02:35.8]} 14... Rc8 {[%clk 0:02:53]} 15. Kg2 {[%clk 0:02:34.5]}
15... Be7 {[%clk 0:02:49.6]} 16. Nc5 {[%clk 0:02:33.9]} 16... Qb6 {[%clk
0:02:32.9]} 17. Qd2 {[%clk 0:02:16.4]} 17... Rc7 {[%clk 0:02:02.5]} 18. Rc3
{[%clk 0:02:11.1]} 18... Bxc5 {[%clk 0:01:44.8]} 19. Rxc5 {[%clk 0:02:06.9]}
19... O-O {[%clk 0:01:43.3]} 20. Rhc1 {[%clk 0:02:02.7]} 20... Rfc8 {[%clk
0:01:42.7]} 21. Qc3 {[%clk 0:01:59.3]} 21... a6 {[%clk 0:01:32.5]} 22. b4 {[%clk
0:01:55.7]} 22... Qa7 {[%clk 0:01:32]} 23. Qb2 {[%clk 0:01:38.9]} 23... b6
{[%clk 0:01:31.5]} 24. R5c3 {[%clk 0:01:39.2]} 24... Ne7 {[%clk 0:01:30.1]} 25.
Bg5 {[%clk 0:01:38.7]} 25... Ng6 {[%clk 0:01:29.1]} 26. Kg3 {[%clk 0:01:35]}
26... Qb8 {[%clk 0:01:27.3]} 27. Kg2 {[%clk 0:01:30.1]} 27... h6 {[%clk
0:01:25.9]} 28. Be3 {[%clk 0:01:29.4]} 28... Nh4+ {[%clk 0:01:26]} 29. Kg3
{[%clk 0:01:29.6]} 29... Nxf3 {[%clk 0:01:26.2]} 30. Kxf3 {[%clk 0:01:30.5]}
30... Bb5 {[%clk 0:01:26.4]} 31. g5 {[%clk 0:01:25.1]} 31... hxg5 {[%clk
0:01:25.1]} 32. Bxg5 {[%clk 0:01:24.2]} 32... Rc4 {[%clk 0:01:23.7]} 33. Rxc4
{[%clk 0:01:07]} 33... dxc4 {[%clk 0:01:23.6]} 34. Rg1 {[%clk 0:00:55.3]} 34...
Qb7+ {[%clk 0:01:23.1]} 35. Ke3 {[%clk 0:00:55.8]} 35... c3 {[%clk 0:01:22.1]}
36. Qc2 {[%clk 0:00:55.8]} 36... Be8 {[%clk 0:00:15.5]} 37. Bf6 {[%clk
0:00:46.3]} 37... g6 {[%clk 0:00:16]} 38. f3 {[%clk 0:00:46.5]} 38... Qd5 {[%clk
0:00:04.2]} 39. Rg4 {[%clk 0:00:44]} 39... Bc6 {[%clk 0:00:01.8]} 40. Rxg6+
{[%clk 0:00:31.1]} 40... Kf8 {[%clk 0:00:02.7]} 41. Rg8+ {[%clk 0:00:31]} 41...
Kxg8 {[%clk 0:00:02]} 42. Qg2+ {[%clk 0:00:31.9]} 42... Kf8 {[%clk 0:00:01.7]}
43. Qg7+ {[%clk 0:00:32.8]} 43... Ke8 {[%clk 0:00:02.4]} 44. Qg8+ {[%clk
0:00:33.7]} 44... Kd7 {[%clk 0:00:03]} 45. Qxf7# {[%clk 0:00:34.6]} 1-0

[Event "Early-Titled-Tuesday-Blitz-January-23-2024"]
[Site "Chess.com"]
[Date "2024.01.23"]
[Round "10"]
[White "VladimirKramnik"]
[Black "Grischuk"]
[Result "1/2-1/2"]
[WhiteElo "2948"]
[BlackElo "3071"]
[TimeControl "180+1"]
[EndTime "9:56:20 PST"]
[Termination "Game drawn by repetition"]

1. d4 {[%clk 0:03:00.9]} 1... d5 {[%clk 0:02:58.5]} 2. Nf3 {[%clk 0:03:01.3]}
2... Nf6 {[%clk 0:02:55.6]} 3. e3 {[%clk 0:03:01.4]} 3... c5 {[%clk 0:02:39.1]}
4. dxc5 {[%clk 0:02:56.7]} 4... e6 {[%clk 0:02:36.7]} 5. a3 {[%clk 0:02:54.8]}
5... Bxc5 {[%clk 0:02:36]} 6. b4 {[%clk 0:02:54.5]} 6... Be7 {[%clk 0:02:33.8]}
7. Bb2 {[%clk 0:02:55]} 7... a5 {[%clk 0:02:32.3]} 8. b5 {[%clk 0:02:54.8]} 8...
O-O {[%clk 0:02:32]} 9. c4 {[%clk 0:02:51.1]} 9... Nbd7 {[%clk 0:02:31.6]} 10.
Nbd2 {[%clk 0:02:44.1]} 10... a4 {[%clk 0:02:25.8]} 11. Be2 {[%clk 0:02:38.6]}
11... Nb6 {[%clk 0:02:13.5]} 12. O-O {[%clk 0:02:34.3]} 12... Bd7 {[%clk
0:02:13.6]} 13. Bd4 {[%clk 0:02:30.4]} 13... Rc8 {[%clk 0:02:00.1]} 14. Ne5
{[%clk 0:02:13.6]} 14... Bc5 {[%clk 0:01:56.2]} 15. Bb2 {[%clk 0:01:48.5]} 15...
Qe7 {[%clk 0:01:42.6]} 16. cxd5 {[%clk 0:01:48]} 16... exd5 {[%clk 0:01:31.9]}
17. Nxd7 {[%clk 0:01:47.7]} 17... Nfxd7 {[%clk 0:01:32.8]} 18. Nf3 {[%clk
0:01:43.9]} 18... Nf6 {[%clk 0:01:31.3]} 19. Nd4 {[%clk 0:01:36.8]} 19... g6
{[%clk 0:01:31.1]} 20. Ra2 {[%clk 0:01:08.5]} 20... Rc7 {[%clk 0:01:24.6]} 21.
Nf3 {[%clk 0:01:05.6]} 21... Ne4 {[%clk 0:01:10.4]} 22. Ba1 {[%clk 0:01:04.1]}
22... Rd8 {[%clk 0:01:02.1]} 23. Rc2 {[%clk 0:00:59.7]} 23... Nc4 {[%clk
0:00:48.6]} 24. Bxc4 {[%clk 0:00:59.3]} 24... dxc4 {[%clk 0:00:48.8]} 25. Qe2
{[%clk 0:00:56.6]} 25... c3 {[%clk 0:00:43.3]} 26. Bxc3 {[%clk 0:00:46.2]} 26...
Bxa3 {[%clk 0:00:34.3]} 27. Ba1 {[%clk 0:00:34.7]} 27... Bc5 {[%clk 0:00:29.1]}
28. Rc4 {[%clk 0:00:28]} 28... a3 {[%clk 0:00:26.6]} 29. Ne5 {[%clk 0:00:26.2]}
29... Nd2 {[%clk 0:00:17.5]} 30. Ng4 {[%clk 0:00:24.7]} 30... Nxc4 {[%clk
0:00:13.7]} 31. Nf6+ {[%clk 0:00:24.2]} 31... Kf8 {[%clk 0:00:10.3]} 32. Nxh7+
{[%clk 0:00:24.5]} 32... Kg8 {[%clk 0:00:07.4]} 33. Nf6+ {[%clk 0:00:25.1]}
33... Kf8 {[%clk 0:00:07.6]} 34. Nh7+ {[%clk 0:00:16.9]} 34... Kg8 {[%clk
0:00:06.8]} 35. Nf6+ {[%clk 0:00:16.1]} 35... Kf8 {[%clk 0:00:07.2]} 36. Nh7+
{[%clk 0:00:10.2]} 1/2-1/2